bitfinex-derivatives/quotes_BTCF0:USTF0_20250108
["timestamp","ask_amount","ask_price","bid_price","bid_amount"]
[1736361708794,0.052872,94582.0,94576.0,0.3608]
[1736361708993,0.052871,94584.0,94576.0,0.3608]
[1736361709199,0.30094798,94590.0,94582.0,0.052872]
[1736361709796,0.30094798,94590.0,94581.0,1.50064]
[1736361710004,0.05287,94586.0,94581.0,1.5]
[1736361710296,0.052872,94582.0,94581.0,1.5]
[1736361710502,0.052879,94569.0,94567.0,0.3618]
[1736361710793,0.16035635,94577.0,94567.0,0.3618]
[1736361710985,0.16035635,94577.0,94567.0,0.3608]
[1736361711187,0.10748135,94577.0,94567.0,0.3608]
[1736361711394,0.052876,94574.0,94567.0,0.3608]
[1736361711597,0.12590016,94568.0,94567.0,0.3608]
[1736361711891,0.12590016,94568.0,94567.0,0.41368]
[1736361712500,0.12590016,94568.0,94567.0,0.41668]
[1736361712897,0.001,94569.0,94568.0,0.052879]
[1736361713397,0.12590016,94571.0,94568.0,0.052879]
[1736361713595,0.12590016,94571.0,94567.0,0.3638]
[1736361713790,0.052879,94568.0,94567.0,0.3638]
[1736361714492,0.052879,94568.0,94567.0,0.3628]
[1736361715390,0.052879,94568.0,94567.0,0.3608]
[1736361716092,0.052879,94568.0,94567.0,1.8608]
[1736361716702,0.055879,94568.0,94567.0,1.8608]
[1736361716900,0.003,94568.0,94567.0,1.8608]
[1736361717200,0.003,94568.0,94567.0,1.91368]
[1736361717799,0.18885024,94576.0,94575.0,0.052876]
[1736361718000,0.25180032,94594.0,94587.0,0.052869]
[1736361718188,0.25180032,94594.0,94587.0,0.413669]
[1736361718388,0.052861,94602.0,94587.0,1.913669]
[1736361718589,0.39002528,94611.0,94604.0,0.052859]
[1736361718990,0.052858,94606.0,94604.0,0.052859]
[1736361719203,0.39002528,94611.0,94605.0,1.5]
[1736361719204,0.23497632,94611.0,94605.0,1.5]
[1736361719500,0.23497632,94611.0,94610.0,0.052856]
[1736361719703,0.23497632,94611.0,94605.0,1.50064]
[1736361719898,0.23497632,94611.0,94605.0,1.5]
[1736361720201,0.02765104,94611.0,94610.0,0.052856]
[1736361720397,0.013,94611.0,94610.0,0.413656]
[1736361720588,0.004,94611.0,94610.0,0.413656]
[1736361720792,0.013,94611.0,94610.0,0.413656]
[1736361722290,0.009,94611.0,94610.0,0.413656]
[1736361722491,0.26094271,94625.0,94617.0,0.052852]
[1736361722803,0.31379071,94625.0,94619.0,0.3608]
[1736361723199,0.052848,94624.0,94619.0,0.3608]
[1736361723893,0.004,94625.0,94624.0,0.052848]
[1736361724401,0.005,94625.0,94624.0,0.052848]
[1736361724993,0.12049762,94645.0,94624.0,1.5]
[1736361725194,0.052838,94643.0,94637.0,0.052841]
[1736361725394,0.01443129,94645.0,94633.0,0.3608]
[1736361725589,0.3608,94647.0,94633.0,0.3608]
[1736361725795,0.052837,94645.0,94635.0,0.052842]
[1736361725989,0.052837,94645.0,94638.0,0.05284]
[1736361727096,0.37831489,94647.0,94633.0,0.3608]
[1736361727305,0.009,94645.0,94639.0,0.05284]
[1736361728093,0.05284,94640.0,94638.0,0.001]
[1736361728293,0.3608,94639.0,94633.0,0.001]
[1736361728499,0.052843,94634.0,94602.0,0.3608]
[1736361728805,0.052855,94613.0,94612.0,0.3608]
[1736361728999,0.3608,94628.0,94612.0,0.3608]
[1736361729199,0.05285,94621.0,94612.0,0.3608]
[1736361729398,0.052854,94614.0,94612.0,0.3608]
[1736361730399,0.10748135,94622.0,94612.0,0.3608]
[1736361730599,0.052857,94609.0,94602.0,0.3608]
[1736361730800,0.052854,94614.0,94602.0,0.3608]
[1736361730995,0.3608,94615.0,94602.0,0.3608]
[1736361731303,0.052852,94618.0,94611.0,0.052855]
[1736361731506,0.052852,94618.0,94612.0,1.5]
[1736361731697,0.052852,94618.0,94612.0,1.8608]
[1736361731897,0.052852,94617.0,94612.0,1.8608]
[1736361732205,0.052853,94616.0,94612.0,1.8608]
[1736361732604,0.052854,94614.0,94612.0,1.8608]
[1736361732806,0.05285,94621.0,94612.0,1.8608]
[1736361733007,0.052853,94617.0,94612.0,1.8608]
[1736361733504,0.37549122,94628.0,94612.0,1.8608]
[1736361733505,0.052854,94614.0,94612.0,1.8608]
[1736361733709,0.052854,94614.0,94609.0,0.052857]
[1736361733710,0.3608,94616.0,94602.0,0.3608]
[1736361734006,0.3608,94605.0,94594.0,0.3608]
[1736361734201,0.052863,94598.0,94595.0,1.5]
[1736361734393,0.3088,94604.0,94595.0,1.5]
[1736361734594,0.05286,94603.0,94599.0,0.052862]
[1736361735307,0.01474676,94605.0,94595.0,1.50056]
[1736361735506,0.3307,94619.0,94604.0,0.3608]
[1736361735700,0.3307,94619.0,94610.0,0.052856]
[1736361735701,0.052852,94618.0,94610.0,0.052856]
[1736361735906,0.34514466,94619.0,94612.0,0.3608]
[1736361737020,0.006,94618.0,94612.0,0.3608]
[1736361737314,0.052854,94613.0,94612.0,0.3608]
[1736361737514,0.052854,94613.0,94612.0,0.3618]
[1736361737813,0.052854,94613.0,94612.0,0.001]
[1736361738601,0.054854,94613.0,94612.0,0.001]
[1736361739202,0.061854,94613.0,94612.0,0.001]
[1736361739807,0.054854,94613.0,94604.0,0.3608]
[1736361740001,0.061854,94613.0,94612.0,0.001]
[1736361740401,0.002,94613.0,94604.0,0.3608]
[1736361740700,0.002,94613.0,94612.0,0.414655]
[1736361740701,0.009,94613.0,94612.0,0.414655]
[1736361741102,0.009,94613.0,94612.0,1.914655]
[1736361741607,0.007,94613.0,94612.0,1.914655]
[1736361742004,0.052853,94615.0,94612.0,1.913655]
[1736361742204,0.052854,94613.0,94612.0,0.3608]
[1736361742408,0.052854,94613.0,94587.0,0.3608]
[1736361742409,0.052867,94591.0,94587.0,0.3608]
[1736361742603,0.3608,94597.0,94587.0,0.3608]
[1736361742800,0.052868,94588.0,94580.0,0.24914807]
[1736361743107,0.1695,94596.0,94580.0,0.24914807]
[1736361743108,0.052869,94586.0,94580.0,0.24914807]
[1736361743502,0.052869,94586.0,94573.0,1.5]
[1736361743503,0.052876,94574.0,94573.0,0.00056]
[1736361743703,0.052876,94574.0,94567.0,0.18654354]
[1736361743704,0.05288,94568.0,94567.0,0.18654354]
[1736361744910,0.052885,94559.0,94551.0,0.413688]
[1736361745106,0.052888,94553.0,94546.0,0.052892]
[1736361745314,0.3608,94554.0,94542.0,0.052894]
[1736361745506,0.052891,94548.0,94538.0,0.052896]
[1736361745706,0.3608,94554.0,94543.0,0.413693]
[1736361745707,0.052888,94553.0,94543.0,0.413693]
[1736361746008,0.052891,94549.0,94543.0,0.413693]
[1736361746212,0.052891,94549.0,94544.0,1.5]
[1736361746606,0.052891,94549.0,94544.0,1.552893]
[1736361746907,0.37436112,94554.0,94543.0,0.3628]
[1736361747209,0.052892,94546.0,94543.0,0.3668]
[1736361747405,0.052893,94545.0,94543.0,0.3668]
[1736361747607,0.05289,94550.0,94543.0,0.3668]
[1736361747807,0.05289,94549.0,94543.0,0.3668]
[1736361748010,0.37436112,94554.0,94543.0,0.3628]
[1736361748208,0.37436112,94554.0,94543.0,0.3608]
[1736361748409,0.37436112,94554.0,94543.0,0.001]
[1736361748610,0.052893,94544.0,94543.0,0.001]
[1736361748913,0.052893,94544.0,94539.0,1.50064]
[1736361749111,0.052893,94544.0,94543.0,0.003]
[1736361749411,0.37436112,94554.0,94550.0,0.05289]
[1736361749609,0.01356112,94554.0,94550.0,0.41369]
[1736361749809,0.052885,94559.0,94550.0,0.41369]
[1736361750213,0.06631698,94559.0,94550.0,0.41369]
[1736361750707,0.01343198,94559.0,94553.0,0.052888]
[1736361750906,0.01343198,94559.0,94550.0,0.3608]
[1736361750907,0.052885,94559.0,94550.0,0.3608]
[1736361751310,0.052885,94559.0,94550.0,0.3628]
[1736361751712,0.001,94554.0,94550.0,0.3678]
[1736361751912,0.001,94554.0,94550.0,0.3658]
[1736361752408,0.052886,94557.0,94550.0,0.3608]
[1736361752609,0.052886,94557.0,94522.0,0.18654354]
[1736361752610,0.3608,94558.0,94529.0,0.3608]
[1736361752810,0.052894,94542.0,94535.0,0.052898]
[1736361753110,0.16133304,94540.0,94535.0,0.052898]
[1736361754217,0.052894,94542.0,94536.0,0.052897]
[1736361754818,0.1,94540.0,94536.0,0.052897]
[1736361755115,0.052897,94536.0,94535.0,0.002]
[1736361755310,0.052897,94536.0,94535.0,1.502]
[1736361755516,0.1,94540.0,94535.0,1.502]
[1736361756020,0.1,94540.0,94538.0,0.413696]
[1736361756520,0.052896,94539.0,94538.0,0.3608]
[1736361757206,0.1,94540.0,94536.0,0.002]
[1736361757408,0.413696,94539.0,94538.0,0.002]
[1736361757715,0.052896,94539.0,94538.0,0.002]
[1736361758115,0.052896,94539.0,94535.0,1.50456]
[1736361758418,0.1,94540.0,94538.0,0.001]
[1736361758613,0.1,94540.0,94539.0,0.052896]
[1736361759217,0.1,94560.0,94539.0,1.5]
[1736361759218,0.26133304,94560.0,94539.0,1.5]
[1736361759418,0.052889,94552.0,94548.0,0.05289]
[1736361759724,0.27500535,94560.0,94546.0,0.3608]
[1736361759725,0.05289,94549.0,94546.0,0.413692]
[1736361760221,0.052887,94554.0,94546.0,0.3608]
[1736361760522,0.052887,94554.0,94550.0,0.05289]
[1736361761020,0.001,94552.0,94550.0,0.05289]
[1736361762607,0.052887,94554.0,94550.0,0.05689]
[1736361762812,0.052887,94554.0,94550.0,0.05789]
[1736361763415,0.052887,94554.0,94550.0,0.05689]
[1736361763614,0.052887,94554.0,94550.0,0.05789]
[1736361763814,0.052887,94554.0,94550.0,0.05689]
[1736361764021,0.27500535,94560.0,94550.0,0.004]
[1736361764209,0.052888,94553.0,94550.0,0.003]
[1736361764414,0.052888,94553.0,94550.0,0.004]
[1736361764615,0.11367231,94560.0,94551.0,0.052889]
[1736361764817,0.052887,94555.0,94552.0,1.5]
[1736361765219,0.11367231,94560.0,94552.0,1.5]
[1736361765427,0.052888,94553.0,94552.0,1.5]
[1736361766530,0.3608,94554.0,94550.0,0.001]
[1736361766531,0.052889,94551.0,94550.0,0.001]
[1736361766728,0.052889,94551.0,94534.0,0.1553]
[1736361766729,0.413689,94551.0,94534.0,0.1553]
[1736361766929,0.052898,94535.0,94534.0,0.1553]
[1736361767230,0.3608,94539.0,94529.0,1.50056]
[1736361767231,0.052899,94534.0,94529.0,1.50056]
[1736361767426,0.052899,94534.0,94529.0,1.552901]
[1736361767929,0.1075256,94550.0,94529.0,1.5]
[1736361768132,0.1075256,94550.0,94536.0,0.052897]
[1736361768426,0.052893,94545.0,94536.0,0.3608]
[1736361768626,0.3608,94551.0,94536.0,0.3608]
[1736361768929,0.3608,94551.0,94540.0,0.052895]
[1736361768930,0.052892,94545.0,94540.0,0.052895]
[1736361769132,0.1075256,94550.0,94536.0,0.3608]
[1736361769428,0.052891,94548.0,94543.0,0.052893]
[1736361769828,0.1075256,94550.0,94538.0,0.052896]
[1736361770036,0.052897,94537.0,94536.0,0.003]
[1736361770531,0.052897,94537.0,94536.0,0.007]
[1736361770725,0.052897,94537.0,94536.0,0.004]
[1736361771028,0.052899,94533.0,94532.0,0.23944354]
[1736361771624,0.052899,94533.0,94532.0,0.60024354]
[1736361771826,0.05389,94550.0,94549.0,0.05289]
[1736361772029,0.05389,94550.0,94549.0,0.3608]
[1736361772227,0.05389,94550.0,94549.0,1.8608]
[1736361772425,0.05389,94550.0,94549.0,1.91369]
[1736361772625,0.05289,94550.0,94549.0,1.91369]
[1736361773128,0.052895,94541.0,94540.0,0.3608]
[1736361773431,0.1604156,94550.0,94549.0,0.004]
[1736361773627,0.05289,94550.0,94549.0,0.004]
[1736361773823,0.05489,94550.0,94549.0,0.001]
[1736361774028,0.002,94550.0,94538.0,0.052896]
[1736361774219,0.052894,94542.0,94536.0,1.50056]
[1736361774425,0.052894,94542.0,94539.0,0.052896]
[1736361775029,0.001,94541.0,94540.0,0.005]
[1736361775226,0.001,94541.0,94540.0,0.057895]
[1736361775932,0.05247485,94541.0,94540.0,0.057895]
[1736361776432,0.05247485,94541.0,94540.0,0.058895]
[1736361776639,0.05147485,94541.0,94540.0,0.414695]
[1736361776936,0.1,94560.0,94540.0,0.3618]
[1736361777131,0.1,94560.0,94557.0,0.3608]
[1736361777335,0.1,94560.0,94559.0,0.052885]
[1736361777538,0.1,94560.0,94559.0,1.552885]
[1736361779725,0.1,94560.0,94559.0,1.556885]
[1736361779927,0.1,94560.0,94559.0,1.80603307]
[1736361780126,0.1,94560.0,94559.0,1.80403307]
[1736361780425,0.153884,94560.0,94559.0,1.75614807]
[1736361780627,0.153884,94560.0,94559.0,0.25614807]
[1736361780823,0.152884,94560.0,94559.0,0.25314807]
[1736361781332,0.152884,94560.0,94559.0,0.002]
[1736361781529,0.152884,94560.0,94559.0,0.005]
[1736361781937,0.1,94560.0,94559.0,0.004]
[1736361782123,0.1,94560.0,94559.0,0.056885]
[1736361782729,0.1,94560.0,94559.0,1.74395607]
[1736361782925,0.101,94560.0,94559.0,1.74395607]
[1736361783238,0.153884,94560.0,94559.0,0.19107107]
[1736361783432,0.475284,94560.0,94559.0,0.19107107]
[1736361783638,0.477284,94560.0,94559.0,0.18907107]
[1736361784128,0.052892,94546.0,94531.0,1.50056]
[1736361784441,0.052896,94538.0,94531.0,1.50056]
[1736361784741,0.413696,94538.0,94531.0,0.00056]
[1736361784929,0.413696,94538.0,94530.0,0.3608]
[1736361785635,0.413696,94538.0,94526.0,0.43526826]
[1736361785828,0.413696,94538.0,94537.0,0.25477521]
[1736361786335,0.413696,94538.0,94520.0,0.052906]
[1736361786535,0.052903,94527.0,94520.0,0.052906]
[1736361786727,0.052903,94527.0,94515.0,0.1542]
[1736361787338,0.1075256,94530.0,94520.0,0.052906]
[1736361787537,0.052904,94524.0,94520.0,0.052906]
[1736361787734,0.052904,94524.0,94520.0,0.061906]
[1736361788731,0.13344486,94523.0,94520.0,0.061906]
[1736361789133,0.052905,94522.0,94520.0,0.065906]
[1736361789731,0.13344486,94523.0,94522.0,0.052905]
[1736361789933,0.14634632,94523.0,94520.0,0.004]
[1736361790139,0.052906,94522.0,94520.0,0.013]
[1736361790440,0.052906,94522.0,94521.0,1.5]
[1736361790642,0.053906,94522.0,94521.0,1.5]
[1736361790833,0.052906,94521.0,94520.0,0.013]
[1736361791643,0.052906,94521.0,94520.0,0.00232976]
[1736361792034,0.052906,94521.0,94520.0,0.36312976]
[1736361792232,0.001,94522.0,94521.0,0.052906]
[1736361792746,0.001,94522.0,94521.0,1.552906]
[1736361793039,0.053905,94522.0,94521.0,0.009]
[1736361793934,0.06695346,94522.0,94521.0,0.009]
[1736361794139,0.06695346,94522.0,94521.0,0.013]
[1736361794140,0.01404846,94522.0,94521.0,0.013]
[1736361794337,0.06695346,94522.0,94521.0,0.013]
[1736361795344,0.36695346,94522.0,94493.0,0.01322361]
[1736361795540,0.052917,94501.0,94487.0,0.1702]
[1736361795936,0.052917,94501.0,94477.0,0.3608]
[1736361795937,0.05293,94479.0,94477.0,0.3608]
[1736361796138,0.1075256,94487.0,94477.0,0.3608]
[1736361796343,0.05293,94479.0,94477.0,0.3608]
[1736361796637,0.05293,94479.0,94455.0,0.3352]
[1736361796638,0.05293,94479.0,94467.0,0.052936]
[1736361797033,0.1075256,94480.0,94475.0,0.052932]
[1736361797337,0.052933,94473.0,94458.0,0.3608]
[1736361797543,0.1604546,94480.0,94470.0,0.413734]
[1736361797734,0.1075256,94480.0,94470.0,0.3608]
[1736361797939,0.1075256,94480.0,94477.0,0.001]
[1736361798147,0.3608,94484.0,94477.0,0.001]
[1736361798148,0.05293,94479.0,94477.0,0.001]
[1736361799240,0.05293,94478.0,94477.0,0.001]
[1736361799649,0.3608,94484.0,94468.0,0.052935]
[1736361799650,0.001,94473.0,94468.0,0.052935]
[1736361800146,0.1075256,94478.0,94458.0,0.3608]
[1736361800349,0.001,94479.0,94469.0,0.052935]
[1736361800541,0.05293,94478.0,94469.0,0.3608]
[1736361800742,0.05293,94478.0,94471.0,0.052933]
[1736361800941,0.001,94473.0,94471.0,0.052933]
[1736361801450,0.001,94473.0,94469.0,0.3608]
[1736361801451,0.05293,94478.0,94472.0,0.052933]
[1736361801645,0.052933,94472.0,94469.0,0.3608]
[1736361801844,0.052934,94471.0,94469.0,0.3608]
[1736361802038,0.001,94479.0,94469.0,0.3608]
[1736361802039,0.05293,94478.0,94470.0,1.5]
[1736361802242,0.052934,94471.0,94470.0,1.5]
[1736361804052,0.053934,94471.0,94470.0,1.5]
[1736361804242,0.053934,94471.0,94450.0,0.3608]
[1736361804447,0.052945,94451.0,94450.0,0.3608]
[1736361805344,0.052943,94455.0,94450.0,1.913746]
[1736361805746,0.052941,94459.0,94451.0,0.052944]
[1736361805954,0.01237724,94460.0,94451.0,0.052944]
[1736361806152,0.052942,94458.0,94452.0,0.052944]
[1736361806848,0.052942,94456.0,94450.0,1.8658]
[1736361807252,0.052942,94456.0,94450.0,1.918745]
[1736361807456,0.052942,94456.0,94452.0,0.001]
[1736361807840,0.001,94458.0,94452.0,0.001]
[1736361808056,0.001,94458.0,94452.0,0.053944]
[1736361808349,0.052942,94456.0,94450.0,1.8624]
[1736361808557,0.052942,94456.0,94450.0,1.8618]
[1736361808859,0.001,94458.0,94450.0,1.8618]
[1736361809154,0.052943,94455.0,94450.0,1.8618]
[1736361809355,0.052943,94455.0,94451.0,0.052945]
[1736361809850,0.052943,94455.0,94454.0,0.052943]
[1736361811757,0.052943,94455.0,94454.0,0.053943]
[1736361811959,0.052943,94455.0,94454.0,0.001]
[1736361813347,0.052943,94455.0,94454.0,0.053943]
[1736361813544,0.01278743,94462.0,94454.0,0.001]
[1736361813749,0.1075256,94480.0,94461.0,0.3608]
[1736361814054,0.052938,94463.0,94462.0,0.4798]
[1736361814753,0.052938,94463.0,94462.0,0.532739]
[1736361814952,0.052938,94463.0,94462.0,0.4798]
[1736361815960,0.052938,94463.0,94462.0,0.3208]
[1736361816461,0.053938,94463.0,94462.0,0.3208]
[1736361816958,0.052938,94463.0,94462.0,0.3208]
[1736361817149,0.053938,94463.0,94462.0,0.3208]
[1736361817350,0.056938,94463.0,94462.0,0.1592]
[1736361817558,0.004,94463.0,94450.0,1.86136]
[1736361817748,0.01678138,94463.0,94450.0,1.8608]
[1736361817949,0.052941,94459.0,94454.0,0.052943]
[1736361818156,0.052941,94459.0,94450.0,1.8614]
[1736361818349,0.052941,94459.0,94457.0,0.052942]
[1736361820863,0.052941,94459.0,94458.0,0.3608]
[1736361822158,0.12009813,94470.0,94458.0,0.3608]
[1736361822366,0.052939,94462.0,94458.0,0.3608]
[1736361822550,0.052939,94462.0,94458.0,0.413741]
[1736361823164,0.12009813,94470.0,94458.0,0.413741]
[1736361823165,0.052939,94461.0,94458.0,0.413741]
[1736361823362,0.05294,94459.0,94458.0,0.3608]
[1736361824765,0.10445374,94459.0,94458.0,0.3608]
[1736361824961,0.10445374,94459.0,94450.0,1.553585]
[1736361824962,0.41231374,94459.0,94450.0,1.553585]
[1736361825261,0.052944,94453.0,94450.0,1.552945]
[1736361825762,0.052947,94447.0,94446.0,0.3272]
[1736361826362,0.413747,94447.0,94446.0,0.3272]
[1736361826559,0.3608,94447.0,94434.0,0.15746]
[1736361826761,0.052954,94435.0,94434.0,0.1569]
[1736361826965,0.3608,94438.0,94431.0,0.3237]
[1736361827157,0.052956,94432.0,94431.0,0.3237]
[1736361827863,0.3608,94438.0,94419.0,0.1569]
[1736361828062,0.052959,94426.0,94420.0,0.1624]
[1736361828257,0.052962,94421.0,94418.0,0.3608]
[1736361828564,0.052957,94429.0,94419.0,1.5]
[1736361828753,0.052957,94429.0,94423.0,0.052961]
[1736361829158,0.052957,94429.0,94424.0,0.1569]
[1736361829359,0.3608,94430.0,94428.0,0.052958]
[1736361829561,0.05151374,94432.0,94430.0,0.052957]
[1736361830365,0.19017412,94431.0,94430.0,0.052957]
[1736361830863,0.05296,94425.0,94419.0,1.5]
[1736361831061,0.24313112,94431.0,94419.0,1.5]
[1736361831267,0.052958,94428.0,94419.0,1.5]
[1736361831465,0.1075256,94430.0,94419.0,1.5]
[1736361831773,0.001,94432.0,94419.0,1.5]
[1736361831964,0.052957,94429.0,94422.0,0.052961]
[1736361832360,0.001,94431.0,94422.0,0.052961]
[1736361832595,0.052959,94427.0,94422.0,0.052961]
[1736361832763,0.05296,94424.0,94419.0,1.50056]
[1736361832971,0.001,94431.0,94419.0,1.5]
[1736361833372,0.053956,94431.0,94430.0,0.002]
[1736361834159,0.05296,94425.0,94419.0,1.502]
[1736361834561,0.052961,94424.0,94419.0,1.502]
[1736361835268,0.052961,94423.0,94419.0,1.502]
[1736361835469,0.052961,94422.0,94419.0,1.502]
[1736361835662,0.052962,94420.0,94419.0,1.502]
[1736361836262,0.052962,94420.0,94419.0,1.5]
[1736361837273,0.052962,94420.0,94419.0,1.502]
[1736361838271,0.053962,94420.0,94419.0,1.502]
[1736361839567,0.053962,94420.0,94419.0,1.554963]
[1736361840470,0.001,94420.0,94419.0,1.552963]
[1736361840671,0.17970731,94444.0,94420.0,0.052962]
[1736361840870,0.17970731,94444.0,94419.0,1.854963]
[1736361840871,0.12675831,94444.0,94443.0,0.052949]
[1736361841260,0.052946,94450.0,94438.0,0.4785]
[1736361841470,0.3608,94467.0,94459.0,0.05294]
[1736361841670,0.3608,94467.0,94446.0,0.3608]
[1736361841863,0.3608,94467.0,94448.0,0.052947]
[1736361842069,0.3608,94467.0,94454.0,0.3608]
[1736361842272,0.1075256,94464.0,94454.0,0.3608]
[1736361842576,0.001,94450.0,94448.0,0.052946]
[1736361843672,0.001,94450.0,94449.0,0.052946]
[1736361843975,0.3608,94467.0,94450.0,0.1075256]
[1736361844275,0.052939,94463.0,94462.0,0.052939]
[1736361845083,0.3608,94467.0,94465.0,0.052937]
[1736361845377,0.413736,94467.0,94465.0,0.052937]
[1736361845775,0.413736,94467.0,94466.0,1.5]
[1736361845961,0.48735624,94467.0,94466.0,1.552937]
[1736361846368,0.48935624,94467.0,94466.0,1.552937]
[1736361846677,0.12855624,94467.0,94466.0,1.552937]
[1736361847468,0.0968952,94467.0,94466.0,1.552937]
[1736361847765,0.03518144,94479.0,94466.0,1.553937]
[1736361847973,0.03518144,94479.0,94478.0,0.05293]
[1736361848173,0.15819531,94481.0,94480.0,0.052929]
[1736361848478,0.15819531,94481.0,94480.0,0.413729]
[1736361848779,0.15819531,94481.0,94480.0,1.913729]
[1736361848969,0.052926,94486.0,94480.0,1.8608]
[1736361849163,0.052926,94486.0,94482.0,0.052927]
[1736361850668,0.053926,94486.0,94482.0,0.052927]
[1736361850868,0.001,94486.0,94484.0,0.052926]
[1736361851572,0.001,94486.0,94485.0,0.052926]
[1736361852374,0.001,94486.0,94480.0,1.8608]
[1736361852774,0.001,94486.0,94482.0,0.052927]
[1736361853176,0.007,94486.0,94482.0,0.052927]
[1736361853373,0.007,94486.0,94480.0,1.8608]
[1736361853677,0.006,94486.0,94480.0,1.8608]
[1736361853875,0.007,94486.0,94481.0,0.052928]
[1736361854073,0.007,94486.0,94480.0,1.86136]
[1736361854374,0.007,94486.0,94482.0,0.052928]
[1736361854567,0.008,94486.0,94484.0,0.052926]
[1736361854975,0.002,94486.0,94484.0,0.052926]
[1736361855577,0.006,94486.0,94484.0,0.052926]
[1736361855975,0.006,94486.0,94480.0,1.8614]
[1736361856176,0.001,94486.0,94485.0,0.052926]
[1736361856373,0.002,94486.0,94480.0,1.914289]
[1736361856673,0.052928,94481.0,94480.0,1.8608]
[1736361856884,0.052928,94481.0,94480.0,1.5]
[1736361857071,0.052933,94472.0,94471.0,0.3608]
[1736361859079,0.056933,94472.0,94471.0,0.3608]
[1736361859381,0.056933,94472.0,94471.0,1.8608]
[1736361859382,0.058933,94472.0,94471.0,1.8608]
[1736361859568,0.055933,94472.0,94471.0,1.5]
[1736361859772,0.06806148,94472.0,94471.0,1.5]
[1736361860091,0.06606148,94472.0,94471.0,1.5]
[1736361860277,0.22625679,94472.0,94471.0,1.5]
[1736361861181,0.22925679,94472.0,94471.0,1.5]
[1736361861477,0.07106148,94472.0,94471.0,1.5]
[1736361861682,0.06706148,94472.0,94471.0,1.5]
[1736361861982,0.07006148,94472.0,94471.0,1.5]
[1736361862583,0.07106148,94472.0,94471.0,1.5]
[1736361863378,0.06906148,94472.0,94471.0,1.5]
[1736361863579,0.07006148,94472.0,94471.0,1.5]
[1736361864181,0.06906148,94472.0,94471.0,1.5]
[1736361864381,0.07006148,94472.0,94471.0,1.5]
[1736361864889,0.06806148,94472.0,94471.0,1.5]
[1736361865075,0.06706148,94472.0,94471.0,1.5]
[1736361865278,0.06806148,94472.0,94471.0,1.5]
[1736361866084,0.005,94472.0,94471.0,1.5]
[1736361866382,0.052923,94490.0,94473.0,0.052933]
[1736361866571,0.1688,94498.0,94486.0,0.052925]
[1736361866777,0.052925,94488.0,94480.0,0.3608]
[1736361866979,0.052925,94488.0,94487.0,1.5]
[1736361867983,0.061925,94488.0,94487.0,1.5]
[1736361868192,0.064925,94488.0,94487.0,1.5]
[1736361868684,0.058925,94488.0,94487.0,1.5]
[1736361869286,0.052923,94490.0,94487.0,1.5]
[1736361869680,0.05292,94497.0,94488.0,0.052924]
[1736361869879,0.05292,94497.0,94496.0,0.3608]
[1736361870479,0.01174415,94498.0,94496.0,0.3608]
[1736361870683,0.052919,94498.0,94496.0,0.3608]
[1736361870880,0.006,94497.0,94496.0,0.3608]
[1736361871083,0.007,94497.0,94496.0,0.3608]
[1736361871482,0.001,94497.0,94496.0,0.3608]
[1736361871884,0.061919,94498.0,94496.0,0.3608]
[1736361872282,0.006,94497.0,94496.0,0.3608]
[1736361872494,0.1715,94497.0,94496.0,0.3608]
[1736361872682,0.006,94497.0,94496.0,0.3608]
[1736361873496,0.008,94497.0,94496.0,0.3608]
[1736361874096,0.008,94497.0,94484.0,0.3608]
[1736361874395,0.052926,94485.0,94484.0,0.3608]
[1736361876608,0.053926,94485.0,94484.0,0.3608]
[1736361876803,0.053926,94485.0,94484.0,1.8608]
[1736361877510,0.34654953,94485.0,94484.0,1.8608]
[1736361878005,0.34754953,94485.0,94484.0,1.8608]
[1736361878210,0.34654953,94485.0,94484.0,1.8608]
[1736361878511,0.34754953,94485.0,94484.0,1.8608]
[1736361878709,0.35951735,94485.0,94484.0,1.8608]
[1736361879303,0.35951735,94485.0,94474.0,0.3608]
[1736361879304,0.5,94484.0,94474.0,0.3608]
[1736361879499,0.052932,94475.0,94474.0,0.3608]
[1736361880310,0.052932,94475.0,94474.0,1.8608]
[1736361880705,0.052929,94480.0,94474.0,1.8608]
[1736361880912,0.052931,94477.0,94475.0,0.1602]
[1736361881204,0.052931,94476.0,94475.0,0.3169]
[1736361882013,0.052931,94476.0,94475.0,1.8169]
[1736361882216,0.16361243,94476.0,94475.0,1.8169]
[1736361882412,0.16361243,94476.0,94475.0,1.869832]
[1736361883004,0.22186787,94477.0,94476.0,0.052931]
[1736361883005,0.1253803,94477.0,94476.0,0.052931]
[1736361883204,0.05150791,94481.0,94480.0,0.052929]
[1736361883815,0.05150791,94481.0,94480.0,1.552929]
[1736361884621,0.05150791,94481.0,94480.0,1.5]
[1736361884622,0.052928,94481.0,94480.0,1.5]
[1736361885120,0.053928,94481.0,94480.0,1.5]
[1736361885322,0.052931,94476.0,94475.0,0.3608]
[1736361885715,0.052931,94476.0,94475.0,1.8608]
[1736361888521,0.053931,94476.0,94475.0,1.8608]
[1736361888923,0.059931,94476.0,94475.0,1.8608]
[1736361889224,0.058931,94476.0,94475.0,1.8608]
[1736361889526,0.059931,94476.0,94475.0,1.8608]
[1736361891123,0.060931,94476.0,94475.0,1.8608]
[1736361891523,0.058931,94476.0,94475.0,1.8608]
[1736361891918,0.056931,94476.0,94475.0,1.8608]